fUSD/lending_fUSD_20241027
["ID","MTS","AMOUNT","RATE_DAILY","PERIOD"]
[340894996,1730037982570,500.0,0.00044169,30]
[340894997,1730037982917,500.0,0.00044169,30]
[340894998,1730037983173,500.0,0.00044169,30]
[340894999,1730037983463,500.0,0.00044169,30]
[340895000,1730037983754,291.54364282,0.00044169,30]
[340895001,1730037984951,-1830.65,0.00013651,2]
[340895002,1730038054777,23900.0,0.00013483,2]
[340895003,1730038082409,477.79,0.00013486,2]
[340895004,1730038086035,37776.23377937,0.0001419,3]
[340895005,1730038095759,15252.43263171,0.00013642,2]
[340895006,1730038109444,165.4,0.00013453,2]
[340895007,1730038117436,3000.0,0.0004417,71]
[340895008,1730038134119,571.0,0.00013403,2]
[340895009,1730038187407,500.0,0.00013443,2]
[340895034,1730038198735,154.89,0.00013486,2]
[340895035,1730038214295,8305.12,0.00013621,2]
[340895036,1730038218882,696.96,0.00013456,2]
[340895041,1730038231680,-3169.12221538,0.00013666,2]
[340895042,1730038231704,-1080.49778462,0.00013666,2]
[340895043,1730038231715,-19.63877226,0.00013742,2]
[340895044,1730038231725,-150.0,0.00013791,2]
[340895045,1730038231735,-1109.3,0.00013812,2]
[340895046,1730038231744,-196.17454892,0.00013818,2]
[340895047,1730038231754,-1621.62514942,0.00013866,2]
[340895048,1730038231889,-556.26670477,0.00013866,2]
[340895049,1730038231901,-651.275,0.00013866,2]
[340895050,1730038231998,-692.70000002,0.00013866,2]
[340895051,1730038232093,-13211.11554216,0.00013866,2]
[340895052,1730038232102,-200.0,0.00013918,2]
[340895053,1730038232111,-2218.0,0.00013927,2]
[340895054,1730038232121,-2000.0,0.00013999,2]
[340895055,1730038232132,-150.0,0.00013999,2]
[340895056,1730038232141,-150.99,0.00013999,2]
[340895057,1730038232150,-557.11,0.00013999,2]
[340895058,1730038232160,-6394.9531,0.00014,2]
[340895059,1730038232169,-2012.4942,0.00014,2]
[340895060,1730038232178,-215.3835,0.00014,2]
[340895061,1730038232187,-1282.3176,0.00014,2]
[340895062,1730038232196,-1071.7215,0.00014,2]
[340895063,1730038232205,-2692.0924,0.00014,2]
[340895064,1730038232215,-54799.3424,0.00014,2]
[340895065,1730038232224,-1924.01,0.00014,2]
[340895066,1730038232233,-6157.62322092,0.00014,2]
[340895067,1730038232242,-250.0,0.00014014,2]
[340895068,1730038232251,-159.7397046,0.00014073,2]
[340895069,1730038232261,-500.0,0.00014073,2]
[340895070,1730038232270,-159.74181578,0.00014073,2]
[340895071,1730038232280,-159.74181578,0.00014073,2]
[340895072,1730038232293,-52755.9819,0.000141,2]
[340895073,1730038232302,-912.6079,0.000141,2]
[340895074,1730038232311,-66383.7057,0.000141,2]
[340895075,1730038232321,-964.0083,0.000141,2]
[340895076,1730038232330,-1092.3681,0.000141,2]
[340895077,1730038232339,-8515.6098,0.000141,2]
[340895078,1730038232457,-5651.494,0.000141,2]
[340895079,1730038232467,-26179.2742,0.000141,2]
[340895080,1730038232477,-7012.3852,0.000141,2]
[340895081,1730038232487,-6776.2886,0.000141,2]
[340895082,1730038232496,-193.0841,0.000141,2]
[340895083,1730038232505,-37716.1946,0.000141,2]
[340895084,1730038232515,-1000.0,0.000141,2]
[340895085,1730038232524,-2500.0,0.000141,2]
[340895086,1730038232534,-162.83100123,0.000141,2]
[340895087,1730038232543,-1218.4,0.00014118,2]
[340895088,1730038232552,-3074.12,0.00014118,2]
[340895089,1730038232562,-565.3,0.00014134,2]
[340895090,1730038232572,-5514.23,0.00014134,2]
[340895091,1730038232581,-108646.58304763,0.0001419,3]
[340895092,1730038232591,-199.73395633,0.0001419,2]
[340895093,1730038232601,-860.57,0.00014199,2]
[340895094,1730038232610,-186.79,0.00014199,2]
[340895095,1730038232620,-195.65874751,0.00014199,2]
[340895096,1730038232629,-500.0,0.00014199,2]
[340895097,1730038232639,-357.91926328,0.00014199,2]
[340895098,1730038232648,-245000.0,0.000142,2]
[340895099,1730038232658,-1745.3743,0.000142,2]
[340895100,1730038232667,-162.83100119,0.000143,2]
[340895101,1730038232676,-163.7,0.0001436,2]
[340895102,1730038232686,-162.83100119,0.000145,2]
[340895103,1730038232696,-154.89,0.0001461,2]
[340895104,1730038232705,-162.83100119,0.000147,2]
[340895105,1730038232714,-796.16,0.00014776,2]
[340895106,1730038232724,-1000.0,0.0001489,2]
[340895107,1730038232733,-1211.475,0.00014899,2]
[340895108,1730038232743,-170.831,0.00014899,2]
[340895109,1730038232752,-5801.501114,0.000149,2]
[340895110,1730038232761,-162.83100119,0.000149,2]
[340895111,1730038232771,-706.5938394,0.000149,2]
[340895112,1730038232780,-339.28887538,0.000149,2]
[340895113,1730038232789,-916.97340059,0.000149,2]
[340895114,1730038232798,-168.27409619,0.000149,2]
[340895115,1730038232807,-209.66088315,0.00014973,2]
[340895116,1730038232817,-210.15970883,0.00014973,2]
[340895117,1730038232826,-199.73395633,0.0001499,2]
[340895118,1730038232836,-199.73395633,0.0001499,2]
[340895119,1730038232845,-150.01,0.00014999,2]
[340895120,1730038232855,-1116101.3111813,0.00015,2]
[340895121,1730038232952,-575.83803792,0.00015,2]
[340895123,1730038238175,-296.41892864,0.00014099,2]
[340895141,1730038239908,-203.58107136,0.00014099,2]
[340895142,1730038239918,-500.0,0.00014099,2]
[340895143,1730038239927,-500.0,0.00014099,2]
[340895144,1730038239936,-152.47688587,0.00014099,2]
[340895145,1730038239945,-1235329.86895282,0.00015,2]
[340895146,1730038239957,-5085.553759,0.00015,2]
[340895147,1730038240020,-540.76,0.00015,2]
[340895153,1730038245767,-34140.43099856,0.00015,2]
[340895154,1730038285421,1000.0,0.0004417,49]
[340895157,1730038363871,1000.0,0.0004417,35]
[340895159,1730038536559,50000.0,0.00044169,30]
[340895160,1730038594893,50000.0,0.00044169,30]
[340895162,1730038653558,50000.0,0.00044169,31]
[340895163,1730038703683,500.0,0.00044144,30]
[340895164,1730038703884,500.0,0.00044144,30]
[340895165,1730038704174,500.0,0.00044144,30]
[340895166,1730038704425,250.61296259,0.00044144,30]
[340895167,1730038706681,500.0,0.00044144,30]
[340895168,1730038706991,500.0,0.00044144,30]
[340895169,1730038707292,500.0,0.00044144,30]
[340895170,1730038707550,176.53368069,0.00044144,30]
[340895171,1730038711159,50000.0,0.00044144,31]
[340895172,1730038775782,50000.0,0.00044144,32]
[340895173,1730038831267,50000.0,0.00044144,32]
[340895174,1730038892271,50000.0,0.00044144,33]
[340895175,1730038921818,500.0,0.00044144,30]
[340895176,1730038922128,510.91576949,0.00044144,30]
[340895177,1730038953423,50000.0,0.00044144,33]
[340895178,1730039014033,50000.0,0.00044144,34]
[340895183,1730039073993,50000.0,0.00044144,34]
[340895191,1730039128081,7662.91136643,0.00044144,30]
[340895192,1730039143132,17308.15773208,0.00044144,30]
[340895193,1730039157791,1139.53,0.00012145,2]
[340895200,1730039178948,500.0,0.00044144,30]
[340895201,1730039179297,500.0,0.00044144,30]
[340895202,1730039179541,500.0,0.00044144,30]
[340895203,1730039179812,500.0,0.00044144,30]
[340895204,1730039180110,500.0,0.00044144,30]
[340895205,1730039180455,500.0,0.00044144,30]
[340895206,1730039180793,500.0,0.00044144,30]
[340895207,1730039181110,500.0,0.00044144,30]
[340895208,1730039181438,500.0,0.00044144,30]
[340895209,1730039181746,533.01538785,0.00044144,30]
[340895210,1730039274061,5458.60716166,0.00044144,30]
[340895211,1730039301029,1000.0,0.000135,2]
[340895212,1730039312964,13974.7679472,0.000129,2]
[340895213,1730039325169,629.80647356,0.00013,2]
[340895222,1730039397941,150.0,0.00013605,2]
[340895251,1730039431958,-357.88442482,0.00013735,2]
[340895252,1730039431970,-69.62557518,0.00013735,2]
[340895253,1730039431980,-200.0,0.00013735,2]
[340895254,1730039431990,-932.94,0.00013826,2]
[340895255,1730039432000,-150.0,0.0001386,2]
[340895256,1730039432009,-300.0,0.00013865,2]
[340895257,1730039432019,-1756.18442482,0.00013866,2]
[340895258,1730039432116,-634.895445,0.00013866,2]
[340895259,1730039432201,-21508.92013018,0.00013866,2]
[340895260,1730039432211,-163.62727286,0.00013866,2]
[340895261,1730039432222,-1382.33218236,0.00013866,2]
[340895262,1730039432234,-1913.86840607,0.00013866,2]
[340895263,1730039432244,-870.17271227,0.00013947,2]
[340895272,1730039437976,-1.47972779,0.00013947,2]
[340895273,1730039438126,-4697.01785875,0.00013947,2]
[340895274,1730039438135,-500.0,0.00013999,2]
[340895275,1730039438144,-500.0,0.00013999,2]
[340895276,1730039438154,-336.08542875,0.00013999,2]
[340895277,1730039438163,-3199.4286,0.00014,2]
[340895278,1730039438172,-10115.45784833,0.00014,2]
[340895281,1730039439940,-12467.90470765,0.00014,2]
[340895282,1730039440164,-222416.63744402,0.00014,2]
[340895283,1730039440174,-1781.9,0.00014047,2]
[340895284,1730039440183,-1087.0,0.00014076,2]
[340895285,1730039440194,-200.0,0.0001408,2]
[340895286,1730039440204,-1270.39,0.00014091,2]
[340895287,1730039440214,-250.0,0.00014119,2]
[340895288,1730039440223,-1648.18375139,0.0001439,2]
[340895289,1730039440234,-1139.53,0.00014409,2]
[340895290,1730039440244,-3839.76923078,0.0001449,3]
[340895291,1730039440253,-129949.49170896,0.000145,3]
[340895292,1730039440263,-250.0,0.00014506,2]
[340895293,1730039440272,-891.26,0.00014506,2]
[340895294,1730039440282,-932.94,0.00014517,2]
[340895295,1730039440292,-1143.256,0.00014776,2]
[340895296,1730039440302,-170.664,0.00014776,2]
[340895297,1730039440311,-903.32843613,0.00014793,2]
[340895298,1730039440320,-903.32843612,0.000148,2]
[340895299,1730039440331,-1097.07692308,0.0001488,3]
[340895300,1730039440340,-2194.15384616,0.0001489,3]
[340895301,1730039440350,-500.0,0.00014899,2]
[340895302,1730039440360,-169.16357709,0.00014899,2]
[340895303,1730039440370,-100000.0,0.000149,2]
[340895304,1730039440380,-530169.8244,0.000149,2]
[340895305,1730039440390,-471.0625596,0.000149,2]
[340895306,1730039440399,-226.1925836,0.000149,2]
[340895307,1730039440408,-164.61,0.00014939,2]
[340895308,1730039440418,-14904.3729956,0.00014993,2]
[340895309,1730039440427,-559.78235692,0.00014993,2]
[340895310,1730039440437,-168.03374188,0.00014999,2]
[340895311,1730039440447,-217080.39384736,0.00015,2]
[340895319,1730039443283,-551.24999974,0.00015,2]
[340895320,1730039443295,-460.5356771,0.00015,2]
[340895321,1730039443366,-773031.52710953,0.00015,2]
[340895322,1730039443521,-486.92219508,0.00015,2]
[340895323,1730039443544,-1922.17594251,0.00015,2]
[340895324,1730039443554,-218881.74026015,0.00015,2]
[340895660,1730039760904,1049.65,0.00044154,30]
[340895661,1730039841391,4157.98,0.00044154,30]
[340895662,1730039841419,150.0,0.00021,30]
[340895663,1730039841652,4157.98,0.00044154,30]
[340895664,1730039841908,4157.98,0.00044154,30]
[340895665,1730039842228,4157.98,0.00044154,30]
[340895666,1730039842539,4157.98,0.00044154,30]
[340895667,1730039842805,4157.98,0.00044154,30]
[340895668,1730039843100,4157.98,0.00044154,30]
[340895669,1730039843411,4157.98,0.00044154,30]
[340895670,1730039843673,4157.98,0.00044154,30]
[340895671,1730039843926,4157.98,0.00044154,30]
[340895672,1730039844189,4157.98,0.00044154,30]
[340895673,1730039844490,4157.98,0.00044154,30]
[340895674,1730039844787,4157.98,0.00044154,30]
[340895675,1730039845046,4157.98,0.00044154,30]
[340895676,1730039845324,4157.98,0.00044154,30]
[340895677,1730039845720,4157.98,0.00044154,30]
[340895678,1730039845954,4157.98,0.00044154,30]
[340895679,1730039846234,4157.98,0.00044154,30]
[340895680,1730039846498,4157.98,0.00044154,30]
[340895681,1730039846811,4157.98,0.00044154,30]
[340895682,1730039847143,4157.98,0.00044154,30]
[340895683,1730039847458,4157.98,0.00044154,30]
[340895684,1730039847746,4157.98,0.00044154,30]
[340895685,1730039848055,4157.98694564,0.00044154,30]
[340895686,1730039854612,500.0,0.00044154,30]
[340895687,1730039854872,500.0,0.00044154,30]
[340895688,1730039855182,500.0,0.00044154,30]
[340895689,1730039855671,500.0,0.00044154,30]
[340895690,1730039856180,500.0,0.00044154,30]
[340895691,1730039856261,500.0,0.00044154,30]
[340895692,1730039856592,500.0,0.00044154,30]
[340895693,1730039856881,362.93309927,0.00044154,30]
[340895694,1730039905743,-218.38141382,0.00013799,2]
[340895695,1730039905766,-3561.057,0.000139,2]
[340895696,1730039905789,-23220.56158618,0.000139,2]
[340895725,1730040127983,1081.72,0.00012066,2]
[340895735,1730040252622,50000.0,0.00044159,30]
[340895736,1730040288777,317.66436302,0.00044159,120]
[340895737,1730040318235,50000.0,0.00044159,30]
[340895741,1730040481380,500.0,0.00044159,30]
[340895742,1730040481639,500.0,0.00044159,30]
[340895743,1730040481912,500.0,0.00044159,30]
[340895744,1730040482304,500.0,0.00044159,30]
[340895745,1730040482475,500.0,0.00044159,30]
[340895746,1730040482769,500.0,0.00044159,30]
[340895747,1730040483110,500.0,0.00044159,30]
[340895748,1730040483403,500.0,0.00044159,30]
[340895749,1730040483766,532.75080744,0.00044159,30]
[340895750,1730040524602,250.0,0.00013627,2]
[340895759,1730040632108,-250.0,0.00013668,2]
[340895760,1730040632118,-110.89553506,0.00013682,2]
[340895761,1730040632129,-676.23,0.00013682,2]
[340895762,1730040632149,-2584.44831226,0.00013682,2]
[340895763,1730040632160,-20528.42615268,0.00013682,2]
[340895764,1730040632169,-629.34,0.00013696,2]
[340895765,1730040632179,-559.76,0.00013771,2]
[340895766,1730040632189,-150.0,0.00013792,2]
[340895767,1730040632198,-200.0,0.00013835,2]
[340895768,1730040632207,-164.61,0.00013835,2]
[340895769,1730040632217,-1032.28374484,0.00013835,2]
[340895770,1730040632226,-500.0,0.00013873,2]
[340895771,1730040632235,-896.0,0.00013899,2]
[340895772,1730040632245,-47093.28751382,0.000139,2]
[340895773,1730040632254,-1758.8238,0.000139,2]
[340895774,1730040632263,-1270.541,0.000139,2]
[340895775,1730040632273,-183.85,0.00013909,2]
[340895776,1730040632282,-157.53,0.00014128,2]
[340895777,1730040632291,-157.53,0.00014146,2]
[340895778,1730040632300,-157.53,0.00014163,2]
[340895779,1730040632309,-157.53,0.00014181,2]
[340895780,1730040632318,-157.53,0.00014199,2]
[340895781,1730040632327,-1081.72,0.0001433,2]
[340895782,1730040632342,-156.51,0.00014351,2]
[340895783,1730040632351,-559.76,0.0001446,2]
[340895784,1730040632360,-178.38,0.00014484,2]
[340895785,1730040632369,-914.605,0.00014667,2]
[340895786,1730040632378,-172.51,0.00014777,2]
[340895787,1730040632387,-669.11,0.000148,2]
[340895788,1730040632396,-5011.80326901,0.000148,2]
[340895789,1730040632405,-262.71,0.0001489,3]
[340895790,1730040632414,-788.16,0.0001489,3]
[340895791,1730040632423,-100000.0,0.000149,2]
[340895792,1730040632432,-500.0,0.000149,2]
[340895793,1730040632443,-1000.0,0.000149,2]
[340895794,1730040632453,-1500.0,0.000149,2]
[340895795,1730040632463,-1500.0,0.000149,2]
[340895796,1730040632472,-1500.0,0.000149,2]
[340895799,1730040632481,-1500.0,0.000149,2]
[340895802,1730040632492,-1502.16,0.000149,2]
[340895806,1730040632506,-611.31560038,0.000149,2]
[340895807,1730040632516,-471.0625596,0.000149,2]
[340895809,1730040632525,-226.1925836,0.000149,2]
[340895810,1730040632536,-194.51132819,0.0001499,2]
[340895811,1730040632547,-194.51132819,0.0001499,2]
[340895812,1730040632556,-194.51132819,0.0001499,2]
[340895813,1730040632565,-20211.0621187,0.00014993,2]
[340895814,1730040632576,-3077.1624866,0.00014993,2]
[340895815,1730040632585,-168.03374188,0.00014999,2]
[340895816,1730040632596,-468.41450396,0.00014999,2]
[340895817,1730040632607,-57098.71678687,0.00015,2]
[340895818,1730040632620,-23507.9484284,0.00015,2]
[340895819,1730040632632,-22172.27415739,0.00015,2]
[340895820,1730040632644,-1408.2894598,0.00015,2]
[340895821,1730040632656,-979.42207152,0.00015,2]
[340895850,1730040640408,-233574.44808496,0.00015,2]
[340895851,1730040640450,-1603.3433219,0.00015,2]
[340896157,1730040643717,-1496.94305861,0.00015,2]
[340896165,1730040643787,-12088.44678313,0.00015,2]
[340896172,1730040643841,-788.14,0.00015,2]
[340896190,1730040644012,-10170.07,0.00015,2]
[340896225,1730040646233,-270.800201,0.00015,2]
[340896226,1730040646290,-33663.2,0.00015,2]
[340896511,1730040712866,500.0,0.00044159,30]
[340896512,1730040713123,500.0,0.00044159,30]
[340896513,1730040713379,500.0,0.00044159,30]
[340896514,1730040713865,500.0,0.00044159,30]
[340896515,1730040714537,500.0,0.00044159,30]
[340896516,1730040714863,325.8886821,0.00044159,30]
[340896519,1730040759694,500.0,0.00044159,30]
[340896520,1730040759995,500.0,0.00044159,30]
[340896521,1730040760320,232.61471279,0.00044159,30]
[340896524,1730041115483,-784.63752493,0.00014526,2]
[340896525,1730041115504,-7300.6357,0.000147,2]
[340896526,1730041115525,-2012.4942,0.000147,2]
[340896527,1730041115547,-250.0,0.00014705,2]
[340896528,1730041115568,-731.684,0.00014705,2]
[340896529,1730041115591,-23900.0,0.00014725,2]
[340896530,1730041115615,-564.86,0.00014749,2]
[340896531,1730041115636,-564.86,0.00014752,2]
[340896532,1730041115661,-564.86,0.00014756,2]
[340896533,1730041115682,-564.86,0.0001476,2]
[340896534,1730041115706,-564.86,0.00014764,2]
[340896535,1730041115730,-564.86,0.00014768,2]
[340896536,1730041115755,-989.46,0.00014771,2]
[340896537,1730041115777,-564.86,0.00014772,2]
[340896538,1730041115803,-564.86,0.00014776,2]
[340896539,1730041115826,-564.86,0.0001478,2]
[340896540,1730041115853,-564.86,0.00014784,2]
[340896541,1730041115875,-564.86,0.00014787,2]
[340896542,1730041115898,-564.86,0.00014791,2]
[340896543,1730041115922,-564.86,0.00014795,2]
[340896544,1730041115948,-564.86,0.00014799,2]
[340896545,1730041115971,-24014.6833,0.000148,2]
[340896546,1730041115994,-564.86,0.00014803,2]
[340896547,1730041116019,-564.86,0.00014807,2]
[340896548,1730041116042,-564.86,0.00014811,2]
[340896549,1730041116066,-314.67,0.00014814,2]
[340896550,1730041116091,-564.86,0.00014815,2]
[340896551,1730041116116,-564.86,0.00014819,2]
[340896552,1730041116138,-564.86,0.00014822,2]
[340896553,1730041116159,-1496.1877,0.000149,2]
[340896554,1730041116180,-250.0,0.00014926,2]
[340896555,1730041116202,-293.75,0.0001499,3]
[340896556,1730041116224,-881.25,0.0001499,3]
[340896557,1730041116245,-4868.0638919,0.00014993,2]
[340896558,1730041116268,-576475.50333263,0.00015,2]
[340896559,1730041116291,-811398.03306756,0.00015,2]
[340896560,1730041175928,200.65681553,0.00013582,2]
[340896561,1730041421274,1000.0,0.00013,120]
[340896562,1730041437843,1011.74,0.00021,120]
[340896563,1730041585685,-226.41735,0.0001438,2]
[340896564,1730041585706,-500.0,0.00014453,2]
[340896565,1730041585727,-500.0,0.00014453,2]
[340896566,1730041585747,-150.0,0.00014511,2]
[340896567,1730041585768,-970.8464582,0.0001489,2]
[340896568,1730041585788,-300.0,0.00014899,2]
[340896569,1730041585809,-4669.16710212,0.000149,2]
[340896570,1730041585831,-314.0417064,0.000149,2]
[340896571,1730041585850,-150.79505572,0.000149,2]
[340896572,1730041585870,-1565.04485589,0.000149,2]
[340896573,1730041585891,-500.0,0.00014973,2]
[340896574,1730041585914,-23965.5424846,0.0001499,3]
[340896575,1730041585938,-64269.1200752,0.0001499,3]
[340896576,1730041585958,-587.5,0.0001499,3]
[340896577,1730041585982,-5893.2269643,0.00014993,2]
[340896578,1730041586002,-4282.8446007,0.00014993,2]
[340896579,1730041586023,-327.89015278,0.00014999,2]
[340896580,1730041586044,-324940.80190025,0.00015,2]
[340896581,1730041586064,-1246916.91324916,0.00015,2]
[340896582,1730041586085,-4409955.36524677,0.00015,2]
[340896583,1730041586111,-2909014.48279791,0.00015,2]
[340896584,1730041595799,500.0,0.0004415,30]
[340896585,1730041596231,498.9001,0.0004415,30]
[340896586,1730041637314,500.0,0.0004415,30]
[340896587,1730041637688,500.0,0.0004415,30]
[340896588,1730041638004,500.0,0.0004415,30]
[340896589,1730041638305,378.53233907,0.0004415,30]
[340896590,1730041638671,500.0,0.0004415,30]
[340896591,1730041639030,500.0,0.0004415,30]
[340896592,1730041639347,500.0,0.0004415,30]
[340896593,1730041639689,500.0,0.0004415,30]
[340896594,1730041640023,500.0,0.0004415,30]
[340896595,1730041640364,309.56,0.0004415,30]
[340896596,1730041643059,500.0,0.0004415,30]
[340896597,1730041643393,500.0,0.0004415,30]
[340896598,1730041643724,500.0,0.0004415,30]
[340896599,1730041644037,500.0,0.0004415,30]
[340896600,1730041644306,500.0,0.0004415,30]
[340896601,1730041644360,500.0,0.0004415,30]
[340896602,1730041644635,500.0,0.0004415,30]
[340896603,1730041644736,488.79028364,0.0004415,30]
[340896604,1730041645319,500.0,0.0004415,30]
[340896605,1730041646022,313.978153,0.0004415,30]
[340896606,1730041653277,500.0,0.0004415,30]
[340896607,1730041653615,287.81464104,0.0004415,30]
[340896608,1730041655867,500.0,0.0004415,30]
[340896609,1730041655951,500.0,0.0004415,30]
[340896610,1730041656186,500.0,0.0004415,30]
[340896611,1730041656283,215.4027777,0.0004415,30]
[340896612,1730041656491,500.0,0.0004415,30]
[340896613,1730041656824,500.0,0.0004415,30]
[340896614,1730041657529,4.82967719,0.0004415,30]
[340896619,1730041832170,-2408.90398313,0.000149,2]
[340896620,1730041832442,-2102.37785743,0.000149,2]
[340896621,1730041832451,-52897.61334395,0.0001499,3]
[340896837,1730041838555,-7662.73050866,0.0001499,3]
[340896838,1730041838594,-3.89450039,0.0001499,3]
[340896889,1730041840597,-8645.6502198,0.0001499,3]
[340896890,1730041840606,-224928.79786516,0.00015,2]
[340896891,1730041840619,-135715.32825335,0.00015,2]
[340896892,1730041840630,-1289.70571172,0.00015,2]
[340896893,1730041840751,-374.713,0.00015,2]
[340896899,1730041843683,-483.26096059,0.00015,2]
[340896900,1730041843696,-89188.70898229,0.00015,2]
[340896901,1730041843705,-151.902828,0.00015,2]
[340896902,1730041843716,-151.0,0.00015,2]
[340896903,1730041843726,-152.347256,0.00015,2]
[340896904,1730041843737,-151.0,0.00015,2]
[340896905,1730041843746,-177.675971,0.00015,2]
[340896906,1730041843756,-151.0,0.00015,2]
[340896907,1730041843765,-151.0,0.00015,2]
[340896908,1730041843774,-151.0,0.00015,2]
[340896909,1730041843783,-151.0,0.00015,2]
[340896910,1730041843794,-151.0,0.00015,2]
[340896911,1730041843803,-151.0,0.00015,2]
[340896912,1730041843813,-151.0,0.00015,2]
[340896913,1730041843823,-151.0,0.00015,2]
[340896914,1730041843832,-151.0,0.00015,2]
[340896915,1730041843842,-151.0,0.00015,2]
[340896916,1730041843852,-151.0,0.00015,2]
[340896917,1730041843862,-151.0,0.00015,2]
[340896918,1730041843871,-250.0,0.00015,2]
[340896919,1730041843881,-354.919908,0.00015,2]
[340896920,1730041843890,-354.919908,0.00015,2]
[340896921,1730041843899,-151.0,0.00015,2]
[340896922,1730041843909,-151.0,0.00015,2]
[340896923,1730041843918,-151.0,0.00015,2]
[340896924,1730041843927,-151.0,0.00015,2]
[340896925,1730041843936,-151.0,0.00015,2]
[340896926,1730041843945,-151.0,0.00015,2]
[340896927,1730041843954,-151.0,0.00015,2]
[340896928,1730041843963,-151.0,0.00015,2]
[340896929,1730041843972,-151.0,0.00015,2]
[340896930,1730041843981,-151.0,0.00015,2]
[340896931,1730041843990,-151.0,0.00015,2]
[340896932,1730041843999,-154.308273,0.00015,2]
[340896933,1730041844008,-151.0,0.00015,2]
[340896934,1730041844017,-203.313983,0.00015,2]
[340896935,1730041844026,-203.313983,0.00015,2]
[340896936,1730041844035,-151.0,0.00015,2]
[340896937,1730041844044,-303.264978,0.00015,2]
[340896938,1730041844054,-303.264978,0.00015,2]
[340896940,1730041844063,-11225.9925075,0.00015003,2]
[340896942,1730041844073,-586.0,0.00015014,2]
[340896943,1730041844086,-150.0,0.00015035,2]
[340896945,1730041844095,-939.98,0.00015063,2]
[340896947,1730041844104,-294.999999,0.000151,2]
[340896949,1730041844113,-664.90322947,0.00015235,2]
[340896951,1730041844125,-2386.54788182,0.00015332,3]
[340896953,1730041844134,-198.82,0.00015342,2]
[340896955,1730041844143,-160.04,0.00015342,2]
[340896956,1730041844152,-158.4,0.00015342,2]
[340896959,1730041844163,-151.73,0.00015342,2]
[340896960,1730041844172,-160.72,0.00015342,2]
[340896962,1730041844182,-157.07,0.00015342,2]
[340896964,1730041844191,-2719.0,0.00015375,2]
[340896966,1730041844200,-9546.19152728,0.0001589,3]
[340896968,1730041844210,-17834.22383947,0.000159,2]
[340896970,1730041844219,-4773.09576364,0.00015916,3]
[340896973,1730041844228,-500.0,0.00015926,2]
[340896975,1730041844237,-250.0,0.00015926,2]
[340896977,1730041844246,-150.0,0.00015926,2]
[340896979,1730041844256,-220.0,0.00015926,2]
[340896981,1730041844265,-164.295,0.00015926,2]
[340896982,1730041844274,-272.941,0.00015926,2]
[340896984,1730041844283,-264.337,0.00015926,2]
[340896986,1730041844292,-200.0,0.00015926,2]
[340896988,1730041844303,-150.0,0.00015926,2]
[340896990,1730041844312,-281.45,0.00015926,2]
[340896992,1730041844321,-250.0,0.00015926,2]
[340896994,1730041844333,-164.36,0.00015926,2]
[340896996,1730041844344,-152.609,0.00015926,2]
[340896998,1730041844353,-686.872,0.00015926,2]
[340897000,1730041844363,-1247.0,0.00015926,2]